bitfinex/quotes_BTCUSD_20210402
["timestamp","ask_amount","ask_price","bid_price","bid_amount"]
[1617357144884,0.211,59615.0,59610.0,0.03895626]
[1617357145085,0.211,59615.0,59614.0,0.02488437]
[1617357145289,0.211,59615.0,59609.0,0.31541902]
[1617357145524,0.211,59615.0,59609.0,0.251568]
[1617357146123,0.32814,59624.0,59613.0,0.386821]
[1617357146328,0.32814,59624.0,59614.0,0.1]
[1617357146525,0.33790908,59623.0,59614.0,0.1]
[1617357146723,0.17,59622.0,59607.0,0.0878]
[1617357146927,0.17,59622.0,59608.0,0.1]
[1617357146928,0.16,59615.0,59608.0,0.1]
[1617357147125,0.16,59615.0,59607.0,0.0878]
[1617357147126,0.28790908,59614.0,59607.0,0.0878]
[1617357147322,0.2086278,59615.0,59607.0,0.0878]
[1617357147522,0.28790908,59621.0,59608.0,0.251569]
[1617357147725,0.28790908,59621.0,59609.0,0.0052]
[1617357147923,0.15,59620.0,59609.0,0.0052]
[1617357148349,0.28790908,59621.0,59609.0,0.0052]
[1617357148545,0.185,59619.0,59609.0,0.0052]
[1617357149147,0.235,59619.0,59609.0,0.0052]
[1617357149349,0.28874778,59621.0,59609.0,0.0052]
[1617357150347,0.16,59614.0,59609.0,0.0052]
[1617357150549,0.16,59614.0,59607.0,0.0878]
[1617357150776,0.21,59614.0,59607.0,0.0878]
[1617357150978,0.28874778,59621.0,59607.0,0.0932]
[1617357151177,0.0508387,59621.0,59607.0,0.0932]
[1617357151372,0.0508387,59621.0,59610.0,0.251563]
[1617357151576,0.0008387,59621.0,59610.0,0.251563]
[1617357152576,0.165,59615.0,59610.0,0.251563]
[1617357152776,0.165,59615.0,59611.0,0.386821]
[1617357156635,0.28790908,59614.0,59611.0,0.386821]
[1617357156839,0.215,59615.0,59611.0,0.386821]
[1617357159959,0.00083874,59614.0,59611.0,0.386821]
[1617357160362,0.00831706,59614.0,59611.0,0.386821]
[1617357161497,0.00831706,59614.0,59613.0,0.81265]
[1617357161696,0.00831706,59614.0,59613.0,0.809471]
[1617357162297,0.00831706,59614.0,59613.0,0.619471]
[1617357164123,0.00831706,59614.0,59613.0,0.23265]
[1617357164326,0.01838106,59614.0,59613.0,0.23265]
[1617357164727,0.40342151,59614.0,59613.0,0.23265]
[1617357165127,4.34483503,59614.0,59613.0,0.23265]
[1617357165334,4.34483503,59614.0,59603.0,0.03907354]
[1617357165335,0.51790908,59613.0,59603.0,0.03907354]
[1617357165531,0.51790908,59613.0,59600.0,0.0390987]
[1617357165532,2.24905752,59604.0,59600.0,0.0390987]
[1617357165732,0.28790908,59603.0,59597.0,0.03912226]
[1617357165921,0.52797308,59603.0,59597.0,0.03912226]
[1617357166127,0.56790908,59603.0,59597.0,0.03912226]
[1617357166327,0.28,59603.0,59598.0,0.03908842]
[1617357166523,0.05,59603.0,59598.0,0.03908842]
[1617357166728,0.6499026,59611.0,59599.0,0.03908278]
[1617357166923,0.6999026,59611.0,59600.0,0.03906869]
[1617357167122,0.23,59610.0,59600.0,0.03906869]
[1617357167324,0.59199352,59610.0,59600.0,0.03906869]
[1617357167728,0.23,59610.0,59609.0,0.647325]
[1617357167928,0.05,59611.0,59591.0,0.00303724]
[1617357168124,1.33072614,59614.0,59596.0,0.01]
[1617357168325,1.33072614,59614.0,59609.0,0.647325]
[1617357168326,0.21904045,59613.0,59609.0,0.647325]
[1617357168527,0.29797308,59612.0,59593.0,0.00303724]
[1617357168725,0.88761031,59612.0,59598.0,0.0086]
[1617357168924,0.21904045,59611.0,59600.0,0.251608]
[1617357169147,0.15,59610.0,59600.0,0.251608]
[1617357169744,0.2,59610.0,59600.0,0.251608]
[1617357169943,0.2,59610.0,59606.0,0.40826249]
[1617357170145,0.010064,59609.0,59606.0,0.40826249]
[1617357170943,0.22910445,59609.0,59606.0,0.40826249]
[1617357171147,0.161,59608.0,59596.0,0.1]
[1617357171348,0.38087927,59608.0,59597.0,0.0066]
[1617357171549,0.21183882,59608.0,59597.0,0.0066]
[1617357172184,0.28790908,59598.0,59596.0,0.386821]
[1617357172584,0.05,59599.0,59588.0,0.419191]
[1617357172784,0.05,59599.0,59592.0,0.0082]
[1617357172981,0.00083882,59608.0,59590.0,0.0018]
[1617357173190,0.00083882,59608.0,59598.0,0.251637]
[1617357173387,0.15149675,59608.0,59598.0,0.251637]
[1617357173863,0.010064,59607.0,59598.0,0.251637]
[1617357174058,0.28790908,59605.0,59598.0,0.251637]
[1617357174913,0.29797308,59605.0,59604.0,0.07035]
[1617357175511,0.28790908,59605.0,59604.0,0.07035]
[1617357175708,0.29797308,59605.0,59604.0,0.07035]
[1617357175906,0.28790908,59605.0,59604.0,0.07035]
[1617357176510,0.29797308,59605.0,59604.0,0.07035]
[1617357176710,0.34797308,59605.0,59604.0,0.07035]
[1617357176909,0.05,59605.0,59604.0,0.07035]
[1617357177127,0.2,59606.0,59604.0,0.07035]
[1617357177529,0.05,59606.0,59604.0,0.07035]
[1617357177725,0.00083882,59608.0,59605.0,0.386821]
[1617357178324,0.00083882,59608.0,59607.0,0.457171]
[1617357178527,0.00083882,59608.0,59607.0,0.07035]
[1617357178724,0.00083882,59608.0,59607.0,0.04535]
[1617357179123,0.00083882,59608.0,59607.0,0.386821]
[1617357179761,0.28672252,59607.0,59596.0,0.335512]
[1617357179955,0.50576297,59607.0,59596.0,0.335512]
[1617357180163,0.165,59606.0,59596.0,0.335512]
[1617357180357,0.215,59606.0,59596.0,0.335512]
[1617357180760,0.215,59606.0,59605.0,0.0516]
[1617357180955,1.815064,59606.0,59605.0,0.0516]
[1617357181155,0.775064,59606.0,59605.0,0.0516]
[1617357181357,0.76018436,59606.0,59605.0,0.0516]
[1617357181553,0.51018436,59606.0,59605.0,0.0516]
[1617357181754,0.5110232,59606.0,59605.0,0.0516]
[1617357182583,0.06090284,59606.0,59605.0,0.0516]
[1617357182782,0.05083884,59606.0,59605.0,0.0516]
[1617357182981,0.00083884,59606.0,59598.0,0.251654]
[1617357183381,0.00083884,59606.0,59605.0,0.04901522]
[1617357183981,0.01090284,59606.0,59605.0,0.04901522]
[1617357185602,0.00083884,59606.0,59605.0,0.04901522]
[1617357186398,0.0083181,59606.0,59605.0,0.04901522]
[1617357187627,0.0083181,59606.0,59605.0,0.05839022]
[1617357188627,0.0083181,59606.0,59596.0,0.60303724]
[1617357188919,0.0083181,59606.0,59600.0,0.386821]
[1617357189119,0.0083181,59606.0,59605.0,0.80396865]
[1617357189317,0.0083181,59606.0,59605.0,1.52625965]
[1617357189519,0.0083181,59606.0,59605.0,0.722291]
[1617357190366,0.0083181,59606.0,59605.0,0.922291]
[1617357192369,0.0083181,59606.0,59605.0,0.722291]
[1617357192980,0.0083181,59606.0,59605.0,0.78068122]
[1617357194583,0.0083181,59606.0,59605.0,0.95568122]
[1617357195410,0.0083181,59606.0,59605.0,1.05568122]
[1617357195609,0.0083181,59606.0,59605.0,0.997291]
[1617357196006,0.0083181,59606.0,59605.0,1.40675965]
[1617357196409,0.0083181,59606.0,59605.0,0.997291]
[1617357198039,0.0083181,59606.0,59605.0,1.05568122]
[1617357198644,0.0083181,59606.0,59605.0,0.997291]
[1617357199039,0.0083181,59606.0,59605.0,1.40675495]
[1617357199441,0.26141445,59606.0,59605.0,1.40675495]
[1617357200659,0.01141445,59606.0,59605.0,0.997291]
[1617357200860,0.01141445,59606.0,59605.0,1.05568122]
[1617357201256,0.01141445,59606.0,59605.0,0.997291]
[1617357201457,0.01141445,59606.0,59605.0,0.994518]
[1617357201659,0.01141445,59606.0,59605.0,1.050545]
[1617357202256,0.01141445,59606.0,59605.0,0.98957]
[1617357202456,0.01141445,59606.0,59605.0,1.144295]
[1617357202659,0.01141445,59606.0,59605.0,1.14407223]
[1617357203932,0.01141445,59606.0,59605.0,0.98934723]
[1617357207130,0.01141445,59606.0,59605.0,1.88964588]
[1617357208133,0.01141445,59606.0,59605.0,1.07934723]
[1617357208337,0.01141445,59606.0,59605.0,1.03934723]
[1617357208536,0.01141445,59606.0,59605.0,0.98934723]
[1617357208733,0.01141445,59606.0,59605.0,1.98934723]
[1617357209938,0.01141445,59606.0,59605.0,2.07934723]
[1617357210138,0.01141445,59606.0,59605.0,2.23434723]
[1617357212758,0.01141445,59606.0,59605.0,3.01530678]
[1617357212965,0.01141445,59606.0,59605.0,3.18534936]
[1617357213563,0.01141445,59606.0,59605.0,4.29534936]
[1617357213786,0.01141445,59606.0,59605.0,3.54438981]
[1617357214192,0.01141445,59606.0,59605.0,4.32534936]
[1617357214986,0.01141445,59606.0,59605.0,2.43438981]
[1617357215187,0.01141445,59606.0,59605.0,3.21534936]
[1617357215396,0.00098585,59631.0,59605.0,4.82534936]
[1617357215597,0.00098582,59634.0,59617.0,0.161]
[1617357215803,0.00098582,59635.0,59623.0,0.006]
[1617357215991,0.22002627,59635.0,59623.0,0.006]
[1617357216196,0.00098582,59636.0,59623.0,0.006]
[1617357216414,0.010064,59635.0,59625.0,1.0]
[1617357216614,0.00098577,59638.0,59626.0,0.004]
[1617357216815,0.21904045,59637.0,59632.0,0.251485]
[1617357217009,0.21904045,59637.0,59632.0,0.567805]
[1617357217210,0.22002622,59638.0,59632.0,0.667805]
[1617357217412,0.21904045,59638.0,59632.0,0.667805]
[1617357218410,0.00083844,59637.0,59632.0,0.667805]
[1617357220080,0.21904045,59636.0,59632.0,0.667805]
[1617357220688,0.21987889,59637.0,59632.0,0.667805]
[1617357220984,0.21904045,59636.0,59632.0,0.667805]
[1617357221181,0.21987889,59637.0,59632.0,0.667805]
[1617357221381,0.21904045,59636.0,59632.0,0.667805]
[1617357221582,0.21987889,59637.0,59632.0,0.667805]
[1617357221784,0.21904045,59636.0,59632.0,0.667805]
[1617357222184,0.21904045,59636.0,59632.0,0.567805]
[1617357222984,0.21987889,59637.0,59632.0,0.567805]
[1617357223192,0.21904045,59636.0,59632.0,0.567805]
[1617357223383,0.21987889,59637.0,59632.0,0.567805]
[1617357223983,0.21904045,59636.0,59632.0,0.567805]
[1617357224984,0.00252689,59635.0,59632.0,0.567805]
[1617357226392,0.22156734,59635.0,59632.0,0.567805]
[1617357226589,0.00252689,59635.0,59632.0,0.567805]
[1617357228810,0.00083846,59634.0,59632.0,0.567805]
[1617357229009,0.00083846,59634.0,59632.0,0.61768386]
[1617357229210,0.00083846,59634.0,59632.0,0.567805]
[1617357229409,0.00083846,59634.0,59633.0,0.1]
[1617357229641,0.00083846,59634.0,59632.0,0.251485]
[1617357229839,0.00083846,59634.0,59633.0,0.645]
[1617357230433,0.00083846,59634.0,59632.0,0.251485]
[1617357230643,2.63,59633.0,59632.0,0.251485]
[1617357230843,2.640064,59633.0,59632.0,0.251485]
[1617357231039,2.870064,59633.0,59632.0,0.251485]
[1617357231239,0.36199352,59632.0,59623.0,0.01]
[1617357231441,0.22910445,59631.0,59618.0,0.6]
[1617357231642,0.45910445,59631.0,59623.0,0.335327]
[1617357231841,0.44904045,59630.0,59623.0,0.835327]
[1617357232037,0.010064,59629.0,59623.0,0.835327]
[1617357232263,0.23,59628.0,59623.0,0.835327]
[1617357232466,0.240064,59627.0,59623.0,0.835327]
[1617357232668,0.240064,59627.0,59623.0,0.5]
[1617357233264,0.14,59626.0,59623.0,0.5]
[1617357233467,0.010064,59625.0,59623.0,0.5]
[1617357233671,0.71199352,59632.0,59626.0,0.24975]
[1617357233909,0.205064,59631.0,59626.0,0.24975]
[1617357234107,0.205064,59631.0,59623.0,0.751522]
[1617357234507,0.205064,59631.0,59630.0,0.645]
[1617357235354,2.005064,59631.0,59630.0,0.645]
[1617357235557,0.205064,59631.0,59623.0,0.251522]
[1617357235757,0.010064,59631.0,59630.0,0.645]
[1617357235958,0.00083846,59634.0,59630.0,0.645]
[1617357236356,0.21987891,59634.0,59630.0,0.645]
[1617357236555,0.21904045,59633.0,59630.0,0.645]
[1617357236757,0.05,59633.0,59630.0,0.645]
[1617357236954,0.21904045,59632.0,59625.0,0.25152]
[1617357237158,0.170064,59632.0,59625.0,0.25152]
[1617357237956,0.010064,59632.0,59625.0,0.25152]
[1617357238160,1.010064,59632.0,59631.0,0.645]
[1617357238358,1.0,59632.0,59631.0,0.645]
[1617357238556,0.210064,59632.0,59631.0,0.645]
[1617357238956,0.00083846,59634.0,59631.0,0.645]
[1617357239556,0.00083846,59634.0,59620.0,0.5]
[1617357239757,0.00083846,59634.0,59621.0,0.1]
[1617357239956,0.01090246,59634.0,59633.0,0.24975]
[1617357240190,1.97090246,59634.0,59633.0,0.24975]
[1617357240391,2.20090246,59634.0,59627.0,0.251512]
[1617357240588,2.25090246,59634.0,59627.0,0.251512]
[1617357240986,2.25090246,59634.0,59633.0,0.645]
[1617357241788,0.23,59633.0,59627.0,0.251512]
[1617357241990,0.010064,59632.0,59627.0,0.251512]
[1617357242590,0.010064,59632.0,59628.0,0.0056]
[1617357242808,0.23,59631.0,59627.0,0.251512]
[1617357243012,0.240064,59630.0,59627.0,0.251512]
[1617357244410,0.240064,59630.0,59629.0,0.645]
[1617357244616,0.290064,59630.0,59629.0,0.645]
[1617357245212,0.23,59630.0,59629.0,0.645]
[1617357245437,0.23,59630.0,59629.0,0.1042]
[1617357245641,0.00083846,59634.0,59629.0,0.1042]
[1617357245839,0.00083846,59634.0,59630.0,0.1]
[1617357246037,0.00083846,59634.0,59627.0,0.29485]
[1617357246232,0.00083846,59634.0,59627.0,0.1]
[1617357246634,0.00083846,59634.0,59629.0,0.15]
[1617357247032,0.21987891,59634.0,59629.0,0.15]
[1617357247234,0.00083846,59634.0,59629.0,0.251504]
[1617357247438,0.00083846,59634.0,59622.0,0.1]
[1617357247636,0.01090246,59634.0,59633.0,0.18863892]
[1617357247835,0.06090246,59634.0,59633.0,0.18863892]
[1617357248054,1.53090246,59634.0,59633.0,0.18863892]
[1617357248261,1.71090246,59634.0,59633.0,0.18863892]
[1617357248453,0.29090246,59634.0,59633.0,0.18863892]
[1617357248656,0.28083846,59634.0,59621.0,0.335349]
[1617357248858,0.28083846,59634.0,59621.0,0.340349]
[1617357248859,0.05083846,59634.0,59621.0,0.340349]
[1617357249067,0.00083846,59634.0,59633.0,0.645]
[1617357249272,0.01090246,59634.0,59633.0,0.645]
[1617357249670,0.00083846,59634.0,59633.0,0.645]
[1617357250068,1.78083846,59634.0,59633.0,0.645]
[1617357250270,2.02090246,59634.0,59633.0,0.645]
[1617357250471,2.23390246,59634.0,59633.0,0.645]
[1617357250707,2.23390246,59634.0,59626.0,0.251522]
[1617357250708,0.010064,59633.0,59626.0,0.251522]
[1617357250908,0.23,59632.0,59626.0,0.251522]
[1617357251103,0.010064,59631.0,59626.0,0.251522]
[1617357251307,0.240064,59631.0,59626.0,0.251522]
[1617357251707,0.23,59630.0,59626.0,0.251522]
[1617357252312,0.23,59630.0,59629.0,0.15]
[1617357252709,0.240064,59630.0,59629.0,0.401499]
[1617357252910,0.240064,59630.0,59629.0,0.501499]
[1617357253107,0.240064,59630.0,59629.0,0.351499]
[1617357253513,0.23,59630.0,59629.0,1.351499]
[1617357253713,0.00083846,59634.0,59629.0,1.351499]
[1617357253915,0.00083846,59634.0,59630.0,0.1]
[1617357254314,0.00098708,59636.0,59630.0,0.1]
[1617357254717,0.00098708,59637.0,59630.0,0.1]
[1617357254917,0.00098708,59638.0,59630.0,0.1044]
[1617357255109,0.00098708,59638.0,59633.0,0.795]
[1617357255929,0.00098688,59639.0,59633.0,0.795]
[1617357256130,0.14098688,59639.0,59632.0,0.004]
[1617357256328,0.010064,59638.0,59635.0,0.251493]
[1617357256526,0.00098688,59639.0,59635.0,0.251493]
[1617357257325,0.00098688,59639.0,59638.0,1.0]
[1617357257727,0.00098688,59639.0,59638.0,1.05082017]
[1617357257927,1.09098688,59639.0,59638.0,1.05082017]
[1617357258126,1.09098688,59639.0,59638.0,1.0]
[1617357258325,1.26605088,59639.0,59638.0,1.0]
[1617357258761,0.01105088,59639.0,59638.0,1.0]
[1617357258957,1.06098688,59639.0,59638.0,1.0]
[1617357259158,1.07105088,59639.0,59638.0,1.0]
[1617357259758,0.00098688,59639.0,59638.0,1.0]
[1617357260158,0.18605088,59639.0,59638.0,1.0]
[1617357260361,0.01105088,59639.0,59638.0,1.0]
[1617357260560,0.00098688,59639.0,59638.0,1.0]
[1617357260968,1.24098688,59639.0,59638.0,1.0]
[1617357261218,1.250064,59639.0,59638.0,1.0]
[1617357261403,0.230064,59639.0,59638.0,1.0]
[1617357261603,0.23105089,59639.0,59638.0,1.0]
[1617357261799,0.01105089,59639.0,59638.0,1.0]
[1617357262002,0.66105089,59639.0,59638.0,1.04967752]
[1617357262199,0.66105089,59639.0,59638.0,1.0]
[1617357262600,0.66155089,59639.0,59638.0,1.0]
[1617357262800,0.65655089,59639.0,59638.0,1.0]
[1617357263009,3.69959134,59639.0,59638.0,1.0]
[1617357263208,4.29355863,59639.0,59638.0,1.0]
[1617357263406,4.29454564,59639.0,59638.0,1.0]
[1617357263602,4.29158486,59639.0,59638.0,1.0]
[1617357264019,4.07254441,59639.0,59627.0,0.335328]
[1617357264218,0.240064,59638.0,59628.0,0.1056]
[1617357264420,0.60403102,59638.0,59628.0,0.1056]
[1617357264613,0.82307147,59638.0,59628.0,0.1056]
[1617357264814,0.59199352,59637.0,59628.0,0.1056]
[1617357265018,0.37205752,59636.0,59631.0,0.251503]
[1617357265215,0.010064,59636.0,59631.0,0.251503]
[1617357265615,0.010064,59636.0,59635.0,0.89475]
[1617357265821,0.240064,59636.0,59635.0,0.89475]
[1617357266457,0.23,59636.0,59635.0,0.89475]
[1617357267264,0.150064,59635.0,59634.0,0.251492]
[1617357267464,0.150064,59635.0,59629.0,0.0056]
[1617357268060,0.14,59635.0,59634.0,1.0]
[1617357268860,1.5,59635.0,59634.0,1.0]
[1617357269068,1.510064,59635.0,59634.0,1.0]
[1617357269267,1.5,59635.0,59634.0,0.251497]
[1617357269466,1.420064,59635.0,59627.0,0.335328]
[1617357269670,0.010064,59634.0,59621.0,0.1]
[1617357269871,0.240064,59634.0,59621.0,0.1]
[1617357270068,0.240064,59634.0,59622.0,0.0054]
[1617357270279,0.154,59631.0,59617.0,0.03287327]
[1617357270476,0.154,59631.0,59617.0,0.28442827]
[1617357270674,0.29678652,59630.0,59618.0,0.02985908]
[1617357270872,0.29678652,59630.0,59617.0,0.251555]
[1617357271070,0.28,59629.0,59617.0,0.251555]
[1617357271268,0.010064,59628.0,59617.0,0.251555]
[1617357271471,0.155,59627.0,59617.0,0.251555]
[1617357271686,0.010064,59626.0,59617.0,0.251555]
[1617357271988,0.185064,59626.0,59617.0,0.251555]
[1617357272185,0.175,59626.0,59625.0,0.64515]
[1617357272986,0.175,59626.0,59617.0,0.251555]
[1617357273390,0.05,59627.0,59617.0,0.251555]
[1617357273585,0.05224,59627.0,59617.0,0.251555]
[1617357274227,0.010064,59626.0,59617.0,0.251555]
[1617357274423,0.165064,59626.0,59617.0,0.251555]
[1617357274625,0.205,59626.0,59617.0,0.251555]
[1617357275425,0.205,59626.0,59625.0,0.64515]
[1617357275825,0.010064,59625.0,59621.0,0.251544]
[1617357276025,0.150064,59625.0,59621.0,0.251544]
[1617357276627,0.14083862,59625.0,59624.0,0.64515]
[1617357276837,0.00083862,59625.0,59624.0,0.64515]
[1617357277036,0.00083862,59625.0,59621.0,0.251544]
[1617357277239,0.010064,59624.0,59621.0,0.251544]
[1617357277839,0.00083862,59625.0,59623.0,0.64515]
[1617357278236,0.00083862,59625.0,59619.0,0.251554]
[1617357281597,0.00133862,59625.0,59619.0,0.251554]
[1617357284918,0.0027832,59624.0,59619.0,0.251554]
[1617357286121,0.28950572,59624.0,59619.0,0.251554]
[1617357287121,0.00083862,59623.0,59609.0,0.66]
[1617357287338,0.00083862,59623.0,59613.0,0.004]
[1617357288340,0.00083862,59623.0,59616.0,0.251565]
[1617357294577,0.1,59627.0,59617.0,0.95]
[1617357294775,0.1,59627.0,59616.0,0.251565]
[1617357294974,0.1,59627.0,59618.0,0.245]
[1617357295241,0.586977,59637.0,59617.0,0.0052]
[1617357295379,0.010064,59629.0,59626.0,0.64515]
[1617357295777,0.010064,59629.0,59618.0,0.251557]
[1617357298173,0.00083859,59628.0,59618.0,0.251557]
[1617357298374,0.010064,59627.0,59618.0,0.251557]
[1617357302981,0.010064,59627.0,59626.0,0.64515]
[1617357303394,0.00083859,59628.0,59618.0,0.251557]
[1617357303795,0.00083859,59628.0,59627.0,0.64515]
[1617357304192,0.00083859,59628.0,59622.0,0.3931]
[1617357305194,0.244926,59625.0,59622.0,0.3931]
[1617357305392,0.244926,59625.0,59620.0,0.251552]
[1617357305393,0.294926,59625.0,59620.0,0.251552]
[1617357305596,0.010064,59624.0,59620.0,0.251552]
[1617357305822,0.29678652,59624.0,59620.0,0.251552]
[1617357306022,0.010064,59624.0,59620.0,0.251552]
[1617357306419,0.010064,59624.0,59623.0,0.64515]
[1617357306620,0.294926,59625.0,59623.0,0.64515]
[1617357307221,0.294926,59625.0,59620.0,0.251552]
[1617357307426,0.010064,59624.0,59620.0,0.251552]
[1617357309112,0.00083861,59623.0,59620.0,0.251552]
[1617357310919,1.470064,59624.0,59623.0,0.01916139]
[1617357311315,1.700064,59624.0,59623.0,0.01916139]
[1617357311513,0.240064,59624.0,59623.0,0.01916139]
[1617357311715,0.010064,59624.0,59623.0,0.01916139]
[1617357313818,0.23582861,59625.0,59617.0,0.251558]
[1617357316023,0.22582861,59625.0,59617.0,0.251558]
[1617357318528,0.27582861,59625.0,59617.0,0.251558]
[1617357319356,0.22582861,59625.0,59617.0,0.251558]
[1617357320354,0.00083863,59624.0,59617.0,0.251558]
[1617357321356,0.27348134,59624.0,59617.0,0.251558]
[1617357321980,0.00083863,59624.0,59617.0,0.251558]
[1617357323382,0.00083863,59624.0,59616.0,0.004]
[1617357323592,0.48137401,59624.0,59609.0,0.04234551]
[1617357323793,0.28274326,59615.0,59609.0,0.04234551]
[1617357323992,0.61093326,59615.0,59608.0,0.167]
[1617357324267,0.05,59614.0,59609.0,0.0313586]
[1617357324658,0.66093326,59615.0,59609.0,0.0313586]
[1617357325098,0.61093326,59615.0,59609.0,0.0363586]
[1617357325288,0.61093326,59615.0,59610.0,0.285]
[1617357325486,0.61093326,59615.0,59610.0,0.3163503]
[1617357325684,0.61093326,59615.0,59610.0,0.285]
[1617357326886,0.32819,59615.0,59611.0,0.315]
[1617357327084,0.32819,59615.0,59608.0,0.1712]
[1617357327283,0.32819,59615.0,59610.0,0.386971]
[1617357327484,0.251594,59621.0,59610.0,0.386971]
[1617357327695,0.251594,59621.0,59611.0,0.0058]
[1617357327898,0.00197424,59623.0,59611.0,0.0058]
[1617357328094,0.00197424,59622.0,59611.0,0.0058]
[1617357328297,0.05197427,59623.0,59611.0,0.0058]
[1617357328899,0.00197427,59622.0,59611.0,0.251583]
[1617357329094,0.29841,59622.0,59611.0,0.251583]
[1617357329294,0.66040352,59622.0,59611.0,0.251583]
[1617357329496,0.23,59621.0,59611.0,0.251583]
[1617357329693,0.59199352,59621.0,59611.0,0.251583]
[1617357329894,0.37238,59621.0,59610.0,0.004]
[1617357330093,0.73437352,59621.0,59610.0,0.004]
[1617357330322,0.23,59620.0,59608.0,0.006]
[1617357330525,0.36199352,59619.0,59611.0,0.0084]
[1617357330727,0.28274326,59620.0,59611.0,0.0084]
[1617357330926,0.28358198,59620.0,59611.0,0.0084]
[1617357332126,0.28358198,59620.0,59615.0,0.251564]
[1617357332526,0.28358198,59620.0,59609.0,0.251593]
[1617357332726,0.64212198,59620.0,59609.0,0.251593]
[1617357332948,0.59199352,59619.0,59609.0,0.251593]
[1617357333554,0.28,59619.0,59609.0,0.251593]
[1617357333760,0.05,59619.0,59609.0,0.251593]
[1617357333954,0.05,59619.0,59610.0,0.325]
[1617357334162,0.33358198,59620.0,59610.0,0.325]
[1617357334954,0.33358198,59620.0,59609.0,0.255993]
[1617357335159,0.33358198,59620.0,59606.0,0.00303724]
[1617357336378,0.33358198,59620.0,59608.0,0.251593]
[1617357337177,0.23,59619.0,59610.0,0.004]
[1617357337376,0.28358198,59620.0,59610.0,0.004]
[1617357337578,0.28358198,59620.0,59612.0,0.25158]
[1617357337776,0.28358198,59620.0,59619.0,0.20315089]
[1617357338204,1.74358198,59620.0,59605.0,1.94704367]
[1617357338403,0.59199352,59619.0,59607.0,0.0064]
[1617357339000,0.36199352,59618.0,59607.0,0.0064]
[1617357339199,0.28274326,59617.0,59607.0,0.0064]
[1617357339404,0.165,59617.0,59608.0,0.251594]
[1617357339604,0.22,59616.0,59608.0,0.251594]
[1617357340004,0.22,59616.0,59609.0,0.0036]
[1617357340413,0.36199352,59619.0,59615.0,0.42815089]
[1617357340854,1.41083872,59620.0,59609.0,0.0036]
[1617357341042,0.36199352,59619.0,59610.0,0.0058]
[1617357341245,3.25199352,59619.0,59618.0,0.20315089]
[1617357341640,0.59199352,59619.0,59618.0,0.20315089]
[1617357341846,0.251593,59623.0,59618.0,0.20315089]
[1617357342048,0.301593,59623.0,59610.0,0.251586]
[1617357342248,0.301593,59623.0,59622.0,0.20315089]
[1617357342448,0.87056539,59625.0,59622.0,0.20315089]
[1617357342449,0.50857187,59625.0,59622.0,0.20315089]
[1617357342646,3.13799352,59623.0,59613.0,0.0054]
[1617357343045,0.59199352,59622.0,59613.0,0.0054]
[1617357343649,0.59199352,59622.0,59611.0,0.0046]
[1617357344046,0.59199352,59622.0,59610.0,0.251556]
[1617357344249,3.70199352,59621.0,59611.0,0.004]
[1617357344449,0.36199352,59619.0,59611.0,0.004]
[1617357344651,0.59199352,59619.0,59611.0,0.004]
[1617357345051,0.23,59618.0,59611.0,0.004]
[1617357345649,0.23,59618.0,59617.0,0.20315089]
[1617357346282,0.28274326,59620.0,59617.0,0.20315089]
[1617357348276,0.165,59619.0,59617.0,0.20315089]
[1617357348701,0.416598,59619.0,59617.0,0.20315089]
[1617357352333,3.79699352,59618.0,59617.0,0.20315089]
[1617357352534,3.79783219,59618.0,59617.0,0.20315089]
[1617357353961,1.74783219,59618.0,59617.0,0.20315089]
[1617357354421,1.38583867,59618.0,59617.0,0.20315089]
[1617357354821,2.39583867,59618.0,59617.0,0.20315089]
[1617357355022,2.75783219,59618.0,59617.0,0.20315089]
[1617357355625,1.38583867,59618.0,59617.0,0.20315089]
[1617357358824,1.93583867,59618.0,59617.0,0.20315089]
[1617357359024,1.38583867,59618.0,59617.0,0.20315089]
[1617357359626,1.38583867,59618.0,59602.0,0.00303724]
[1617357359832,1.74783219,59618.0,59617.0,0.27350089]
[1617357360029,0.18583867,59618.0,59617.0,0.27350089]
[1617357360428,0.00083867,59618.0,59617.0,0.27350089]
[1617357361429,0.25244867,59618.0,59617.0,0.27350089]
[1617357362837,1.33744867,59618.0,59617.0,0.27350089]
[1617357363437,0.43744867,59618.0,59617.0,0.27350089]
[1617357363641,0.002,59617.0,59606.0,0.0054]
[1617357363838,0.182,59617.0,59606.0,0.0054]
[1617357364036,0.433606,59617.0,59606.0,0.0054]
[1617357364460,0.433606,59617.0,59616.0,0.27350089]
[1617357364664,0.431606,59617.0,59616.0,0.27350089]
[1617357365667,0.431606,59617.0,59606.0,0.2516]
[1617357365873,0.431606,59617.0,59616.0,1.0]
[1617357366067,0.251606,59617.0,59616.0,1.0]
[1617357366664,0.00083867,59618.0,59616.0,1.0]
[1617357366863,0.00083867,59618.0,59608.0,0.25462724]
[1617357367092,0.00083867,59618.0,59617.0,0.91850089]
[1617357367501,0.00083867,59618.0,59617.0,1.55067381]
[1617357367699,0.00083867,59618.0,59617.0,2.03567381]
[1617357367899,0.00083867,59618.0,59617.0,2.36471426]
[1617357368097,0.00083867,59618.0,59617.0,2.27471426]
[1617357368301,0.00083867,59618.0,59617.0,2.52625526]
[1617357368690,0.00083867,59618.0,59617.0,3.52625526]
[1617357368892,0.00083867,59618.0,59617.0,2.133512]
[1617357369825,0.00083867,59618.0,59617.0,2.033512]
[1617357370021,0.00083867,59618.0,59617.0,1.386971]
[1617357370219,0.00083867,59618.0,59617.0,0.386971]
[1617357370418,0.00083867,59618.0,59617.0,1.386971]
[1617357370615,0.00083867,59618.0,59617.0,1.0]
[1617357371814,0.00083867,59618.0,59617.0,0.9]
[1617357372255,0.00083867,59618.0,59617.0,0.17]
[1617357372452,0.00083867,59618.0,59617.0,0.386971]
[1617357373065,0.00083867,59618.0,59617.0,0.63852]
[1617357373655,0.00083867,59618.0,59617.0,1.63852]